bitfinex/quotes_BTCUSD_20220201
["timestamp","ask_amount","ask_price","bid_price","bid_amount"]
[1643707992387,0.10405948,38480.0,38470.0,0.1444946]
[1643707992590,0.065006,38482.0,38474.0,0.27876421]
[1643707992787,0.352151,38481.0,38474.0,0.32876421]
[1643707993788,0.352151,38481.0,38474.0,0.27876421]
[1643707994587,0.07753028,38480.0,38474.0,0.27876421]
[1643707994789,1.724151,38479.0,38474.0,0.32876421]
[1643707995287,0.352151,38479.0,38474.0,0.32876421]
[1643707995936,0.07753028,38480.0,38474.0,0.32876421]
[1643707996139,0.050006,38482.0,38474.0,0.32876421]
[1643707997138,0.08274838,38478.0,38468.0,0.16948804]
[1643707997339,0.08274838,38478.0,38468.0,0.21948804]
[1643707997538,0.08274838,38478.0,38469.0,0.33337414]
[1643707997736,1.78508219,38477.0,38469.0,0.33337414]
[1643707998136,0.08274838,38478.0,38471.0,0.29196144]
[1643707998336,0.08274838,38478.0,38471.0,0.34196144]
[1643707998539,0.050006,38482.0,38471.0,0.34196144]
[1643707998738,0.352151,38481.0,38471.0,0.34196144]
[1643707999590,0.07530738,38477.0,38471.0,0.34196144]
[1643707999991,0.07530738,38477.0,38465.0,0.34849199]
[1643708000392,0.07530738,38477.0,38471.0,0.0190034]
[1643708000793,0.352151,38476.0,38465.0,0.34849199]
[1643708000992,0.050006,38482.0,38471.0,0.23481121]
[1643708001192,1.85816638,38501.0,38472.0,0.33337414]
[1643708001193,0.130008,38486.0,38472.0,0.33337414]
[1643708001393,0.352151,38484.0,38471.0,0.28481121]
[1643708001592,1.502008,38486.0,38471.0,0.28481121]
[1643708001792,1.372,38483.0,38471.0,0.30366643]
[1643708001998,0.08998447,38475.0,38471.0,0.01885522]
[1643708002294,0.452151,38482.0,38464.0,0.33337414]
[1643708002295,0.352151,38474.0,38464.0,0.33337414]
[1643708002493,1.372,38481.0,38464.0,0.33337414]
[1643708002691,1.372,38481.0,38464.0,0.38337414]
[1643708002891,1.372,38481.0,38470.0,0.26894222]
[1643708003142,1.52645178,38479.0,38470.0,0.26894222]
[1643708003336,0.0916596,38474.0,38470.0,0.31894222]
[1643708003635,0.352151,38473.0,38470.0,0.31894222]
[1643708003834,1.372,38480.0,38470.0,0.31894222]
[1643708004035,0.352151,38479.0,38470.0,0.31894222]
[1643708004436,0.08595099,38477.0,38470.0,0.31894222]
[1643708005038,0.352151,38476.0,38470.0,0.31894222]
[1643708005838,0.08595099,38477.0,38470.0,0.31894222]
[1643708006338,0.08595099,38477.0,38470.0,0.26894222]
[1643708006538,1.437006,38482.0,38470.0,0.26894222]
[1643708006739,0.352151,38481.0,38471.0,0.2962178]
[1643708007395,0.065006,38482.0,38471.0,0.3462178]
[1643708007595,0.07501888,38476.0,38470.0,0.31894222]
[1643708008195,0.07501888,38476.0,38471.0,0.29355871]
[1643708008394,0.065006,38482.0,38470.0,0.33852789]
[1643708008597,0.065006,38482.0,38471.0,0.30639511]
[1643708008797,0.065006,38482.0,38470.0,0.33852789]
[1643708008997,1.372,38483.0,38471.0,0.29852138]
[1643708009597,0.09012065,38480.0,38471.0,0.0833952]
[1643708009806,0.065003,38488.0,38472.0,0.66244905]
[1643708009999,0.5,38491.0,38473.0,0.065001]
[1643708010202,0.5,38491.0,38474.0,0.33337414]
[1643708010397,1.502005,38492.0,38474.0,0.33337414]
[1643708010646,1.502005,38492.0,38480.0,0.16155491]
[1643708010647,0.08859028,38488.0,38480.0,0.16155491]
[1643708010841,0.352151,38487.0,38482.0,0.05]
[1643708011039,0.352151,38487.0,38474.0,0.46336514]
[1643708011242,1.372,38487.0,38474.0,0.129991]
[1643708011841,0.08371329,38481.0,38475.0,0.403343]
[1643708012042,1.372,38487.0,38475.0,0.403343]
[1643708012541,1.372,38487.0,38476.0,0.05]
[1643708012942,0.065001,38489.0,38478.0,0.065001]
[1643708013141,0.352151,38488.0,38478.0,0.065001]
[1643708013341,0.352151,38488.0,38478.0,0.06491788]
[1643708013542,0.08487833,38484.0,38478.0,0.06491788]
[1643708014510,0.352151,38483.0,38478.0,0.06491788]
[1643708015505,0.352151,38483.0,38476.0,0.05]
[1643708015705,1.372,38483.0,38476.0,0.05]
[1643708015907,0.08487833,38484.0,38476.0,0.05]
[1643708016105,1.45687833,38484.0,38476.0,0.05]
[1643708016307,0.78006839,38483.0,38472.0,0.05]
[1643708016506,2.28651039,38478.0,38472.0,0.05]
[1643708016708,1.372,38476.0,38465.0,0.06502]
[1643708016906,0.399951,38475.0,38465.0,0.06502]
[1643708017107,0.499951,38475.0,38464.0,0.29414854]
[1643708017305,1.372,38474.0,38464.0,0.29414854]
[1643708017510,1.724151,38473.0,38464.0,0.29414854]
[1643708018151,0.10122249,38470.0,38467.0,0.1217631]
[1643708018338,1.724151,38473.0,38467.0,0.1217631]
[1643708018339,1.372,38473.0,38467.0,0.1217631]
[1643708018537,0.352151,38472.0,38467.0,0.1217631]
[1643708018736,0.1,38471.0,38463.0,0.01959383]
[1643708018940,1.372,38469.0,38463.0,0.01959383]
[1643708019140,0.32791739,38467.0,38450.0,0.002]
[1643708019339,1.372,38465.0,38450.0,0.002]
[1643708019539,0.41954483,38464.0,38450.0,0.002]
[1643708019737,0.07918504,38455.0,38450.0,0.002]
[1643708019937,0.112849,38460.0,38450.0,0.002]
[1643708020339,0.212849,38460.0,38451.0,0.071146]
[1643708020539,1.88115719,38456.0,38451.0,0.071146]
[1643708020739,0.352151,38455.0,38451.0,0.071146]
[1643708020943,1.88115719,38456.0,38451.0,0.071146]
[1643708021243,0.0478,38460.0,38451.0,0.071146]
[1643708021443,0.01959383,38464.0,38458.0,0.1540682]
[1643708021646,0.01959383,38464.0,38459.0,0.065029]
[1643708021891,0.01959383,38464.0,38459.0,0.115029]
[1643708022087,0.01959383,38464.0,38460.0,0.65516042]
[1643708022692,0.01959383,38464.0,38460.0,0.74327224]
[1643708022892,0.01959383,38464.0,38461.0,0.352151]
[1643708022893,0.01951214,38464.0,38461.0,0.352151]
[1643708023291,0.01951214,38464.0,38461.0,0.402151]
[1643708023691,0.41932754,38482.0,38479.0,0.14475442]
[1643708023893,0.235,38484.0,38479.0,0.14475442]
[1643708023894,0.352151,38481.0,38479.0,0.14475442]
[1643708024100,0.352151,38483.0,38479.0,0.14475442]
[1643708024290,0.352151,38484.0,38472.0,0.065007]
[1643708024503,0.32791739,38478.0,38464.0,0.05]
[1643708024691,0.32791739,38474.0,38463.0,0.01951214]
[1643708024895,0.0478,38473.0,38463.0,0.01951214]
[1643708025292,0.0478,38473.0,38466.0,0.16678681]
[1643708025745,3.09975329,38466.0,38460.0,0.32457356]
[1643708025946,3.09975329,38466.0,38459.0,0.06503]
[1643708026344,3.09975329,38466.0,38455.0,0.05]
[1643708026345,1.372,38464.0,38455.0,0.05]
[1643708026552,0.499951,38465.0,38451.0,0.0061]
[1643708026553,1.372,38462.0,38451.0,0.0061]
[1643708026747,0.09715192,38455.0,38451.0,0.0061]
[1643708026948,0.399951,38454.0,38451.0,0.0061]
[1643708027346,0.1,38453.0,38451.0,0.0061]
[1643708027556,2.622,38451.0,38447.0,0.0011]
[1643708027748,2.622,38451.0,38448.0,0.74956401]
[1643708027749,1.372,38449.0,38448.0,0.74956401]
[1643708027950,1.771951,38449.0,38448.0,0.74956401]
[1643708028147,1.871951,38449.0,38448.0,0.74956401]
[1643708028348,0.8,38447.0,38431.0,0.0122]
[1643708028555,1.82230003,38442.0,38431.0,0.0122]
[1643708028749,2.01366424,38442.0,38431.0,0.0122]
[1643708029485,2.18105351,38442.0,38431.0,0.0122]
[1643708029685,2.18105351,38442.0,38432.0,0.28271996]
[1643708029887,2.18105351,38442.0,38436.0,0.71775496]
[1643708030087,2.18105351,38442.0,38436.0,0.46057569]
[1643708030088,0.81056407,38441.0,38436.0,0.46057569]
[1643708030300,0.81056407,38441.0,38431.0,0.0111]
[1643708030301,1.05,38438.0,38431.0,0.0111]
[1643708030493,1.05,38438.0,38431.0,0.0089]
[1643708030494,0.90993658,38437.0,38431.0,0.0089]
[1643708030691,1.372,38436.0,38431.0,0.0089]
[1643708030888,0.76238334,38435.0,38431.0,0.0089]
[1643708031393,0.09986058,38434.0,38431.0,0.0089]
[1643708031588,1.771951,38433.0,38431.0,0.0089]
[1643708031789,0.0478,38432.0,38431.0,0.0089]
[1643708031989,0.399951,38432.0,38431.0,0.0089]
[1643708033843,0.0478,38432.0,38431.0,0.0089]
[1643708034940,0.12192504,38432.0,38431.0,0.0089]
[1643708035141,0.04762455,38432.0,38431.0,0.0089]
[1643708035941,0.04257193,38432.0,38431.0,0.0089]
[1643708036241,0.39472293,38432.0,38431.0,0.0039]
[1643708036743,0.39472293,38432.0,38430.0,0.0011]
[1643708036744,0.65,38431.0,38430.0,0.0011]
[1643708036997,1.771951,38431.0,38430.0,0.0011]
[1643708037194,2.13298092,38431.0,38430.0,0.0011]
[1643708037596,1.871951,38431.0,38430.0,0.0011]
[1643708037897,1.771951,38431.0,38430.0,0.0011]
[1643708038695,1.871951,38431.0,38430.0,0.0011]
[1643708040395,0.499951,38431.0,38430.0,0.0011]
[1643708040662,0.399951,38431.0,38430.0,0.0011]
[1643708041251,0.090793,38444.0,38430.0,0.0011]
[1643708041252,0.130174,38441.0,38430.0,0.26719157]
[1643708041449,0.1301687,38448.0,38430.0,0.26719157]
[1643708041450,0.352151,38440.0,38430.0,0.26719157]
[1643708041647,0.41723244,38445.0,38430.0,0.31719157]
[1643708041846,0.33276136,38444.0,38430.0,0.31719157]
[1643708042047,0.065085,38438.0,38430.0,0.31719157]
[1643708042250,0.08868658,38434.0,38430.0,0.26719157]
[1643708042448,1.437085,38438.0,38430.0,0.26719157]
[1643708042449,0.065085,38438.0,38430.0,0.26719157]
[1643708042649,0.065085,38438.0,38430.0,0.33809019]
[1643708043449,0.15594647,38438.0,38430.0,0.31719157]
[1643708043847,0.15594647,38438.0,38430.0,0.26719157]
[1643708044048,0.15594647,38438.0,38430.0,0.28820194]
[1643708044487,0.065085,38438.0,38430.0,0.26719157]
[1643708044685,0.065085,38438.0,38430.0,0.0011]
[1643708044887,1.372,38437.0,38430.0,0.0011]
[1643708045087,0.065085,38438.0,38430.0,0.0011]
[1643708045790,0.352151,38437.0,38432.0,0.27988005]
[1643708046189,0.065085,38438.0,38432.0,0.27988005]
[1643708046789,0.352151,38437.0,38432.0,0.32988005]
[1643708047090,0.352151,38437.0,38432.0,0.05]
[1643708047289,0.065085,38438.0,38430.0,0.0011]
[1643708047492,0.130191,38435.0,38430.0,0.0011]
[1643708047690,0.399951,38434.0,38430.0,0.0011]
[1643708047889,0.09999478,38432.0,38430.0,0.0011]
[1643708048151,0.352151,38431.0,38430.0,0.0011]
[1643708048541,1.724151,38431.0,38430.0,0.0011]
[1643708048938,1.724151,38431.0,38428.0,0.0022]
[1643708049540,0.37451939,38430.0,38428.0,0.0022]
[1643708049741,0.065095,38433.0,38428.0,0.0022]
[1643708049742,0.352151,38429.0,38428.0,0.0022]
[1643708049942,0.065095,38433.0,38428.0,0.0022]
[1643708049943,0.352151,38432.0,38428.0,0.0022]
[1643708050739,0.065095,38433.0,38428.0,0.0022]
[1643708051340,0.352151,38432.0,38428.0,0.0022]
[1643708051541,0.065095,38433.0,38428.0,0.0022]
[1643708051891,0.43247688,38443.0,38428.0,0.29864476]
[1643708051892,0.065087,38436.0,38428.0,0.29864476]
[1643708052092,0.065087,38436.0,38428.0,0.0022]
[1643708052493,0.352151,38435.0,38428.0,0.0022]
[1643708053092,1.724151,38435.0,38429.0,0.27355565]
[1643708053295,0.352151,38435.0,38429.0,0.27355565]
[1643708053496,0.065087,38436.0,38429.0,0.32355565]
[1643708053694,0.352151,38435.0,38429.0,0.32355565]
[1643708054292,0.352151,38435.0,38430.0,0.17320846]
[1643708054494,1.372,38433.0,38427.0,0.0011]
[1643708054696,1.46345855,38431.0,38427.0,0.02139461]
[1643708054895,1.437106,38429.0,38427.0,0.0011]
[1643708055094,0.399951,38428.0,38427.0,0.0011]
[1643708055746,0.373931,38428.0,38427.0,0.0011]
[1643708056152,0.0478,38428.0,38427.0,0.0011]
[1643708056345,1.372,38431.0,38427.0,0.0011]
[1643708056944,1.372,38431.0,38427.0,0.12335355]
[1643708057346,0.065094,38432.0,38427.0,0.12335355]
[1643708058350,0.0478,38443.0,38431.0,0.31158114]
[1643708058351,0.065089,38436.0,38431.0,0.31158114]
[1643708058557,0.24085823,38443.0,38427.0,0.12335355]
[1643708058558,0.0650831,38443.0,38427.0,0.12335355]
[1643708058856,0.0650831,38443.0,38434.0,0.22886251]
[1643708059049,0.0650831,38443.0,38434.0,0.27886251]
[1643708059050,0.35249,38442.0,38434.0,0.27886251]
[1643708059250,0.35249,38442.0,38435.0,0.17073379]
[1643708059894,0.065082,38439.0,38434.0,0.27886251]
[1643708060497,1.72449,38438.0,38434.0,0.05]
[1643708060896,0.35249,38438.0,38430.0,0.13373061]
[1643708061095,0.065082,38439.0,38430.0,0.13373061]
[1643708061295,0.35249,38438.0,38430.0,0.18373061]
[1643708061507,0.065087,38436.0,38431.0,0.29800561]
[1643708061896,0.065087,38436.0,38430.0,0.18373061]
[1643708062298,0.065088,38444.0,38430.0,0.18373061]
[1643708062501,0.065071,38446.0,38431.0,0.35269934]
[1643708062696,0.0257,38458.0,38432.0,0.0987172]
[1643708062900,0.5,38458.0,38439.0,0.05]
[1643708063165,0.05397968,38461.0,38439.0,0.05]
[1643708063166,0.05397968,38461.0,38457.0,0.14238542]
[1643708063355,0.19939222,38470.0,38457.0,0.14238542]
[1643708063554,0.07880161,38471.0,38457.0,0.14238542]
[1643708063753,0.07880161,38471.0,38457.0,0.32243642]
[1643708063754,1.372,38469.0,38457.0,0.32243642]
[1643708063956,0.07880161,38471.0,38457.0,0.32243642]
[1643708063957,1.372,38467.0,38457.0,0.32243642]
[1643708064157,0.15352728,38465.0,38461.0,0.32159365]
[1643708064354,0.15352728,38465.0,38457.0,0.130051]
[1643708064555,0.15352728,38465.0,38459.0,0.065031]
[1643708065155,0.15352728,38465.0,38457.0,0.180051]
[1643708065354,0.15352728,38465.0,38457.0,0.31485274]
[1643708065753,1.372,38467.0,38457.0,0.31485274]
[1643708066154,1.372,38467.0,38457.0,0.13937337]
[1643708066359,0.065041,38465.0,38457.0,0.01884237]
[1643708066557,0.065041,38465.0,38451.0,0.112847]
[1643708066760,0.065041,38465.0,38451.0,0.162847]
[1643708066991,0.065041,38465.0,38451.0,0.46413459]
[1643708067189,0.15097588,38462.0,38455.0,0.14059235]
[1643708067388,0.09737851,38458.0,38455.0,0.14059235]
[1643708067589,1.52297588,38462.0,38455.0,0.19059235]
[1643708067590,1.372,38462.0,38455.0,0.19059235]
[1643708067793,0.065041,38465.0,38455.0,0.7505749]
[1643708068089,0.05926838,38465.0,38455.0,0.45882392]
[1643708068290,1.43126838,38465.0,38455.0,0.45882392]
[1643708068688,1.372,38465.0,38455.0,0.45882392]
[1643708070090,1.372,38465.0,38461.0,0.15462829]
[1643708070291,1.372,38465.0,38461.0,0.05]
[1643708070491,1.372,38465.0,38457.0,0.26428065]
[1643708071150,0.09230586,38463.0,38457.0,0.26428065]
[1643708071349,1.372,38467.0,38457.0,0.26428065]
[1643708071852,1.372,38467.0,38457.0,0.21428065]
[1643708072049,1.789525,38466.0,38457.0,0.115039]
[1643708072250,1.789525,38466.0,38457.0,0.065039]
[1643708072853,1.789525,38466.0,38456.0,0.130068]
[1643708073050,0.07818476,38459.0,38456.0,0.27735966]
[1643708073252,1.437035,38466.0,38456.0,0.27735966]
[1643708073452,0.35249,38465.0,38456.0,0.27735966]
[1643708073651,0.35249,38465.0,38457.0,0.05]
[1643708073852,0.35249,38465.0,38456.0,0.130068]
[1643708074053,0.35249,38465.0,38452.0,0.130074]
[1643708074254,1.372,38464.0,38455.0,0.065038]
[1643708074497,0.417531,38463.0,38455.0,0.065038]
[1643708074694,0.1401461,38456.0,38453.0,0.01884918]
[1643708074894,1.372,38462.0,38453.0,0.01884918]
[1643708075496,1.372,38460.0,38453.0,0.01884918]
[1643708075695,1.372,38458.0,38453.0,0.01884918]
[1643708075894,0.35249,38457.0,38453.0,0.01884918]
[1643708076094,1.121082,38467.0,38455.0,0.065039]
[1643708076095,0.065042,38463.0,38455.0,0.065039]
[1643708076298,0.12943076,38461.0,38455.0,0.065039]
[1643708076494,0.20296842,38461.0,38455.0,0.065039]
[1643708076694,0.07353766,38461.0,38455.0,0.065039]
[1643708077198,0.06844272,38461.0,38455.0,0.065039]
[1643708077694,0.1552543,38460.0,38455.0,0.065039]
[1643708078147,1.372,38464.0,38455.0,0.065039]
[1643708078342,1.372,38462.0,38455.0,0.065039]
[1643708078542,0.35249,38461.0,38455.0,0.065039]
[1643708078741,0.71153563,38461.0,38455.0,0.065039]
[1643708078942,1.372,38460.0,38455.0,0.065039]
[1643708079142,0.35249,38459.0,38455.0,0.065039]
[1643708079343,0.50711555,38459.0,38455.0,0.065039]
[1643708080044,1.372,38457.0,38455.0,0.065039]
[1643708080245,0.35249,38456.0,38455.0,0.065039]
[1643708080444,1.72449,38456.0,38455.0,0.065039]
[1643708081145,0.35249,38456.0,38455.0,0.065039]
[1643708081349,0.35249,38457.0,38455.0,0.065039]
[1643708081747,0.1,38456.0,38452.0,0.130074]
[1643708082000,0.07648019,38458.0,38447.0,0.130094]
[1643708082001,0.35249,38455.0,38447.0,0.130094]
[1643708082197,0.07648019,38458.0,38450.0,0.01877492]
[1643708082198,0.0478,38454.0,38450.0,0.01877492]
[1643708082399,0.07648019,38458.0,38450.0,0.01877492]
[1643708082400,0.0478,38453.0,38450.0,0.01877492]
[1643708082596,0.35249,38452.0,38447.0,0.130094]
[1643708082796,0.0478,38453.0,38447.0,0.40564873]
[1643708082998,0.0478,38453.0,38452.0,0.13194374]
[1643708083798,0.0478,38453.0,38451.0,0.065049]
[1643708084896,1.372,38457.0,38451.0,0.065049]
[1643708085103,0.35249,38456.0,38452.0,0.28682914]
[1643708085300,1.372,38457.0,38452.0,0.41691014]
[1643708085498,1.372,38457.0,38452.0,0.130081]
[1643708085738,1.372,38457.0,38452.0,0.51297748]
[1643708085943,0.12672458,38470.0,38461.0,0.38492597]
[1643708086339,1.372,38469.0,38461.0,0.38492597]
[1643708086743,1.372,38469.0,38461.0,0.43492597]
[1643708087543,0.065027,38473.0,38462.0,0.28724254]
[1643708087748,0.35249,38472.0,38467.0,0.15167348]
[1643708088641,0.35249,38472.0,38467.0,0.43010429]
[1643708088843,0.35249,38472.0,38467.0,0.42810429]
[1643708089243,0.35249,38472.0,38467.0,0.68571558]
[1643708089497,0.35249,38472.0,38467.0,0.42810429]
[1643708089895,0.35249,38475.0,38468.0,0.130034]
[1643708090097,0.130031,38481.0,38468.0,0.130034]
[1643708090308,0.260068,38467.0,38466.0,0.065022]
[1643708090498,0.36634395,38480.0,38466.0,0.065022]
[1643708090499,0.065023,38475.0,38466.0,0.065022]
[1643708090699,0.35249,38474.0,38466.0,0.065022]
[1643708090896,1.372,38473.0,38466.0,0.065022]
[1643708091096,1.372,38471.0,38466.0,0.065022]
[1643708091297,0.35249,38470.0,38466.0,0.065022]
[1643708091696,1.72449,38470.0,38466.0,0.065022]
[1643708092100,1.372,38468.0,38467.0,10.0]
[1643708092301,1.5198,38468.0,38467.0,10.0]
[1643708093147,1.584835,38468.0,38467.0,10.0]
[1643708094939,1.584835,38468.0,38467.0,9.905]
[1643708095945,2.534835,38468.0,38467.0,9.02657586]
[1643708096144,2.69797911,38468.0,38467.0,8.46207586]
[1643708096342,1.79797911,38468.0,38467.0,8.46207586]
[1643708096542,2.74797911,38468.0,38467.0,7.35039958]
[1643708096742,2.11684918,38468.0,38467.0,7.35039958]
[1643708097187,3.51945913,38468.0,38467.0,4.56213795]
[1643708097388,0.0650608,38459.0,38444.0,0.130112]
[1643708097589,0.0650608,38459.0,38439.0,0.05009708]
[1643708097590,1.372,38457.0,38439.0,0.05]
[1643708097786,0.50029,38456.0,38439.0,0.05]
[1643708097985,0.50029,38456.0,38436.0,9.708e-05]
[1643708098193,0.09742722,38448.0,38444.0,0.25448]
[1643708098388,1.4198,38447.0,38444.0,0.25448]
[1643708098586,0.06507,38446.0,38443.0,0.09509601]
[1643708098787,1.4198,38445.0,38443.0,0.09509601]
[1643708098987,0.35249,38444.0,38443.0,0.09509601]
[1643708099290,1.372,38443.0,38437.0,0.130133]
[1643708099492,1.372,38443.0,38432.0,0.817]
[1643708099493,0.40029,38442.0,38432.0,0.817]
[1643708099790,0.565367,38442.0,38432.0,0.1764713]
[1643708099990,0.565367,38442.0,38432.0,0.05]
[1643708099991,1.372,38441.0,38432.0,0.05]
[1643708100193,1.87462153,38441.0,38432.0,0.05]
[1643708100389,1.97462153,38441.0,38432.0,0.05]
[1643708101042,1.2,38440.0,38432.0,0.05]
[1643708101244,1.437104,38438.0,38430.0,0.0011]
[1643708101439,0.40029,38437.0,38430.0,0.0011]
[1643708101643,0.72227598,38437.0,38430.0,0.0011]
[1643708101839,1.372,38436.0,38430.0,0.0011]
[1643708102039,1.372,38433.0,38430.0,0.0011]
[1643708102243,1.437105,38431.0,38430.0,0.0011]
[1643708102442,1.837395,38431.0,38430.0,0.0011]
[1643708102640,1.937395,38431.0,38430.0,0.0011]
[1643708104251,1.937395,38431.0,38424.0,0.0011]
[1643708104500,0.71077923,38430.0,38424.0,0.0011]
[1643708104693,0.0478,38429.0,38421.0,0.0111]
[1643708104893,0.065109,38427.0,38421.0,0.0111]
[1643708105092,1.4198,38426.0,38421.0,0.0111]
[1643708105394,0.1,38425.0,38421.0,0.0111]
[1643708105596,0.0478,38424.0,38421.0,0.0111]
[1643708105995,1.372,38423.0,38421.0,0.0111]
[1643708106193,1.4198,38423.0,38421.0,0.0111]
[1643708106400,1.05,38422.0,38415.0,0.89216387]
[1643708106619,1.05,38422.0,38385.0,1.372]
[1643708106620,0.01359518,38405.0,38385.0,1.372]
[1643708106808,0.4,38392.0,38367.0,0.03961747]
[1643708107016,0.05397968,38367.0,38361.0,0.01]
[1643708107202,0.05397968,38367.0,38349.0,3.53153436]
[1643708107203,0.5977,38362.0,38349.0,3.53153436]
[1643708107403,0.5977,38350.0,38349.0,2.21214362]
[1643708107606,0.0857419,38356.0,38349.0,0.45250772]
[1643708107849,0.0857419,38356.0,38341.0,0.0074]
[1643708107850,0.00744056,38350.0,38341.0,0.0074]
[1643708108002,0.00744056,38350.0,38333.0,0.00256012]
[1643708108003,1.372,38348.0,38333.0,0.00256012]
[1643708108252,0.065246,38344.0,38328.0,0.3087362]
[1643708108451,0.5,38341.0,38328.0,0.3087362]
[1643708108660,2.53125,38340.0,38335.0,0.15009703]
[1643708108851,2.53125,38340.0,38328.0,0.3087362]
[1643708108852,1.74909,38340.0,38328.0,0.3087362]
[1643708109049,1.74909,38340.0,38330.0,0.0852683]
[1643708109050,0.35249,38340.0,38330.0,0.0852683]
[1643708109250,0.35249,38340.0,38337.0,0.21468138]
[1643708109251,0.45249,38340.0,38337.0,0.21468138]
[1643708109452,0.130504,38338.0,38328.0,0.3087362]
[1643708109727,0.35139,38337.0,38328.0,0.3087362]
[1643708110053,0.352876,38337.0,38329.0,1.25]
[1643708110258,0.1,38340.0,38329.0,1.5821237]
[1643708110452,0.30390805,38367.0,38339.0,1.9301866]
[1643708110453,0.17621363,38350.0,38339.0,1.9301866]
[1643708110652,0.0257,38351.0,38340.0,0.3321237]
[1643708110653,0.065245,38347.0,38340.0,0.3321237]
[1643708110852,0.065245,38347.0,38341.0,0.3321237]
[1643708111059,0.17621363,38362.0,38342.0,1.25]
[1643708111259,0.04908862,38365.0,38343.0,1.6299237]
[1643708111455,0.17617503,38366.0,38349.0,0.65707004]
[1643708111658,0.652093,38390.0,38384.0,0.08273938]
[1643708111928,0.1761292,38379.0,38371.0,0.1253752]
[1643708112226,0.05,38393.0,38371.0,0.1253752]
[1643708112227,0.5,38396.0,38382.0,0.0011]
[1643708112426,0.0125,38402.0,38383.0,0.28449911]
[1643708112631,0.65218095,38411.0,38383.0,0.28449911]
[1643708112632,0.33404225,38419.0,38388.0,0.25]
[1643708112926,0.35225841,38422.0,38401.0,1.25]
[1643708112927,0.07142302,38422.0,38401.0,1.25]
[1643708113140,0.08,38422.0,38403.0,0.5977]
[1643708113327,0.08,38422.0,38404.0,0.3799237]
[1643708113328,0.00857698,38422.0,38404.0,0.3799237]
[1643708113531,0.17603818,38433.0,38427.0,0.36524519]
[1643708113726,0.17603818,38433.0,38428.0,0.0478]
[1643708113932,0.17603818,38433.0,38413.0,0.3321237]
[1643708113933,0.83223685,38433.0,38422.0,0.0478]
[1643708114132,0.84143985,38433.0,38422.0,0.0478]
[1643708114328,0.84143985,38433.0,38408.0,0.3321237]
[1643708114329,1.2,38431.0,38408.0,0.3321237]
[1643708114532,1.2,38431.0,38396.0,0.5977]
[1643708114533,0.07361814,38411.0,38406.0,0.0478]
[1643708114731,0.07361814,38411.0,38402.0,0.3821237]
[1643708114732,0.07361814,38411.0,38402.0,0.05]
[1643708114930,0.07361814,38411.0,38389.0,0.33858327]
[1643708115128,0.07361814,38411.0,38389.0,0.23215799]
[1643708115331,0.07361814,38411.0,38388.0,0.35881784]
[1643708115332,0.3321237,38410.0,38388.0,0.25]
[1643708115531,0.09193478,38397.0,38392.0,0.07763631]
[1643708115749,0.09193478,38397.0,38388.0,0.25]
[1643708115750,0.13973478,38397.0,38388.0,0.25]
[1643708115948,0.13973478,38397.0,38381.0,0.01]
[1643708116155,1.372,38395.0,38381.0,0.01]
[1643708116348,0.5977,38383.0,38381.0,0.01]
[1643708116550,0.0478,38382.0,38381.0,0.01]
[1643708116747,0.7,38380.0,38361.0,0.01]
[1643708116948,1.82925323,38382.0,38361.0,0.01]
[1643708116949,0.5977,38375.0,38361.0,0.01]
[1643708117247,0.07732953,38382.0,38361.0,0.01]
[1643708117248,0.065214,38373.0,38361.0,0.01]
[1643708117451,0.0478,38372.0,38368.0,0.23691206]
[1643708117645,0.0478,38371.0,38368.0,0.23691206]
[1643708117851,0.5977,38380.0,38368.0,0.23691206]
[1643708117852,0.0478,38370.0,38369.0,0.42400248]
[1643708118047,0.0478,38370.0,38369.0,0.09187878]
[1643708118446,0.1,38386.0,38369.0,1.67400248]
[1643708118647,0.0478,38385.0,38369.0,1.67400248]
[1643708118846,0.07460315,38382.0,38377.0,0.09521158]
[1643708119048,0.0478,38381.0,38377.0,0.09521158]
[1643708119247,0.0478,38380.0,38377.0,0.09521158]
[1643708119499,0.065185,38390.0,38379.0,0.21074931]
[1643708119701,0.0437,38389.0,38380.0,0.3321237]
[1643708119900,0.065176,38395.0,38380.0,0.3321237]
[1643708120100,0.055176,38395.0,38394.0,0.0795845]
[1643708120302,0.055176,38395.0,38386.0,0.17147021]
[1643708120801,0.055176,38395.0,38387.0,0.05]
[1643708121199,0.055176,38395.0,38393.0,0.09676872]
[1643708121401,0.055176,38395.0,38387.0,0.05]
[1643708121798,0.055176,38395.0,38388.0,0.29607283]
[1643708122000,0.49392729,38400.0,38368.0,0.05]
[1643708122001,0.55908429,38400.0,38368.0,0.05]
[1643708122199,0.56408429,38400.0,38376.0,0.05]
[1643708122399,0.56408429,38400.0,38399.0,0.08216812]
[1643708122601,0.005,38404.0,38399.0,0.08216812]
[1643708122798,0.38270502,38409.0,38399.0,0.08216812]
[1643708123005,0.005,38411.0,38401.0,0.21376791]
[1643708123287,1.005,38415.0,38402.0,0.05]
[1643708123478,0.35801016,38414.0,38389.0,0.35578678]
[1643708123675,0.35801016,38414.0,38388.0,0.2350494]
[1643708123676,0.130307,38412.0,38388.0,0.02971]
[1643708123977,0.36301016,38411.0,38388.0,0.3871582]
[1643708124176,0.36301016,38411.0,38388.0,0.02971]
[1643708124373,0.36301016,38411.0,38396.0,0.25664811]
[1643708124374,0.08438726,38400.0,38396.0,0.25664811]
[1643708124572,0.08938726,38400.0,38388.0,0.02971]
[1643708124781,0.1,38398.0,38388.0,0.02971]
[1643708124975,0.1,38398.0,38370.0,0.35598722]
[1643708124976,0.36301016,38397.0,38370.0,0.35598722]
[1643708125274,0.005,38398.0,38370.0,0.1]
[1643708125471,0.08438726,38400.0,38387.0,0.15203754]
[1643708125472,0.35801016,38399.0,38387.0,0.15203754]
[1643708125672,0.35801016,38399.0,38384.0,0.09804949]
[1643708125673,0.09325802,38389.0,38384.0,0.09804949]
[1643708125873,0.09825802,38389.0,38367.0,0.47965903]
[1643708126073,0.09825802,38389.0,38367.0,0.4464394]